fUST/lending_fUST_20240620
["ID","MTS","AMOUNT","RATE_DAILY","PERIOD"]
[329982676,1718893849802,-745.92,0.00056164,120]
[329982677,1718893849811,-500.0,0.00056164,120]
[329982678,1718893849820,-2164.15,0.00056164,120]
[329982679,1718893849830,-500.0,0.00056164,2]
[329982681,1718893849840,-500.0,0.00056164,120]
[329982683,1718893849852,-500.0,0.00056164,120]
[329982685,1718893849861,-500.0,0.00056164,120]
[329982686,1718893849871,-298.31640763,0.00056164,120]
[329982688,1718893849881,-500.0,0.00056164,120]
[329982690,1718893849890,-532.17349156,0.00056164,120]
[329982691,1718893849900,-509.5859671,0.00056164,120]
[329982692,1718893849910,-29746.94,0.00056164,120]
[329982693,1718893849920,-500.0,0.00056164,120]
[329982694,1718893849930,-2713.85,0.00056164,120]
[329982695,1718893849940,-1700.35,0.00056164,21]
[329982696,1718893849950,-500.0,0.00056164,120]
[329982697,1718893849960,-500.0,0.00056164,120]
[329982699,1718893849970,-518.28603694,0.00056164,120]
[329982701,1718893849979,-3121.95,0.00056164,120]
[329982703,1718893849988,-500.0,0.00056164,120]
[329982704,1718893849997,-720.78,0.00056164,120]
[329982705,1718893850007,-500.0,0.00056164,120]
[329982706,1718893850017,-2876.31,0.00056164,120]
[329982707,1718893850026,-500.0,0.00056164,120]
[329982708,1718893850035,-3044.24,0.00056164,120]
[329982709,1718893850045,-500.0,0.00056164,120]
[329982710,1718893850054,-510.98,0.00056164,120]
[329982711,1718893850063,-500.0,0.00056164,120]
[329982712,1718893850073,-500.0,0.00056164,120]
[329982713,1718893850082,-500.0,0.00056164,120]
[329982714,1718893850091,-1268.8,0.00056164,120]
[329982715,1718893850104,-1189.39,0.00056164,120]
[329982716,1718893850113,-239.35102167,0.00056164,120]
[329982717,1718893850122,-527.77,0.00056164,120]
[329982718,1718893850132,-500.0,0.00056164,120]
[329982719,1718893850141,-4860.44,0.00056164,120]
[329982720,1718893850151,-500.0,0.00056164,120]
[329982721,1718893850161,-541.64,0.00056164,120]
[329982722,1718893850171,-500.0,0.00056164,120]
[329982723,1718893850180,-505.48330168,0.00056164,120]
[329982724,1718893850189,-793.66,0.00056164,120]
[329982725,1718893850199,-500.0,0.00056164,120]
[329982726,1718893850208,-500.0,0.00056164,120]
[329982727,1718893850218,-3247.93,0.00056164,120]
[329982728,1718893850227,-500.0,0.00056164,120]
[329982729,1718893850237,-500.0,0.00056164,120]
[329982730,1718893850246,-1140.96,0.00056164,120]
[329982731,1718893850256,-285.82953262,0.00056164,60]
[329982732,1718893850265,-500.0,0.00056164,120]
[329982733,1718893850275,-500.0,0.00056164,120]
[329982734,1718893850284,-500.0,0.00056164,120]
[329982735,1718893850294,-500.0,0.00056164,120]
[329982736,1718893850304,-798.75,0.00056164,120]
[329982737,1718893850314,-5567.6,0.00056164,120]
[329982738,1718893850324,-500.0,0.00056164,120]
[329982739,1718893850334,-2119.36,0.00056164,120]
[329982740,1718893850344,-559.12,0.00056164,2]
[329982741,1718893850357,-4842.48607121,0.00056317,120]
[329982742,1718893850367,-759.77,0.00056435,120]
[329982743,1718893850377,-500.0,0.00056435,120]
[329982744,1718893850387,-1092.89,0.00056437,120]
[329982745,1718893850397,-1092.89,0.00056437,120]
[329982746,1718893850407,-173.35286256,0.00056438,61]
[329982747,1718893850417,-500.0,0.00056438,120]
[329982748,1718893850426,-200.0,0.00056438,7]
[329982749,1718893850436,-500.0,0.00056438,2]
[329982750,1718893850445,-500.0,0.00056438,60]
[329982751,1718893850455,-167.91526873,0.00056438,120]
[329982752,1718893850465,-274.37232236,0.00056438,120]
[329982753,1718893850474,-500.0,0.00056438,120]
[329982754,1718893850484,-500.0,0.00056438,120]
[329982755,1718893850493,-500.0,0.00056438,120]
[329982756,1718893850504,-2840.35,0.00056438,120]
[329982757,1718893850513,-571.96,0.00056438,120]
[329982758,1718893850523,-500.0,0.00056438,120]
[329982759,1718893850534,-500.0,0.00056438,120]
[329982760,1718893850543,-1141.42,0.00056438,120]
[329982761,1718893850557,-500.0,0.00056438,120]
[329982762,1718893850567,-500.0,0.00056438,120]
[329982763,1718893850577,-500.0,0.00056438,120]
[329982764,1718893850586,-745.92,0.00056438,120]
[329982765,1718893850597,-500.0,0.00056438,120]
[329982766,1718893850607,-2164.15,0.00056438,120]
[329982767,1718893850616,-500.0,0.00056438,2]
[329982768,1718893850626,-500.0,0.00056438,120]
[329982769,1718893850635,-500.0,0.00056438,120]
[329982770,1718893850646,-363.01289066,0.00056438,120]
[329982771,1718893850655,-635.97835684,0.00056438,120]
[329982772,1718893850664,-29746.94,0.00056438,120]
[329982773,1718893850674,-500.0,0.00056438,120]
[329982774,1718893850683,-2713.85,0.00056438,120]
[329982775,1718893850692,-1700.35,0.00056438,21]
[329982776,1718893850701,-500.0,0.00056438,120]
[329982777,1718893850710,-500.0,0.00056438,120]
[329982778,1718893850719,-3121.95,0.00056438,120]
[329982779,1718893850728,-500.0,0.00056438,120]
[329982780,1718893850737,-720.78,0.00056438,120]
[329982781,1718893850747,-500.0,0.00056438,120]
[329982782,1718893850756,-2876.31,0.00056438,120]
[329982783,1718893850766,-500.0,0.00056438,120]
[329982784,1718893850776,-3044.24,0.00056438,120]
[329982785,1718893850785,-500.0,0.00056438,120]
[329982786,1718893850794,-510.98,0.00056438,120]
[329982787,1718893850803,-500.0,0.00056438,120]
[329982788,1718893850812,-500.0,0.00056438,120]
[329982789,1718893850822,-500.0,0.00056438,120]
[329982790,1718893850831,-1268.8,0.00056438,120]
[329982791,1718893850840,-1189.39,0.00056438,120]
[329982792,1718893850850,-527.77,0.00056438,120]
[329982793,1718893850859,-507.91278135,0.00056438,120]
[329982794,1718893850868,-4860.44,0.00056438,120]
[329982795,1718893850877,-647.09208893,0.00056438,120]
[329982796,1718893850886,-541.64,0.00056438,120]
[329982797,1718893850896,-500.0,0.00056438,120]
[329982798,1718893850905,-793.66,0.00056438,120]
[329982799,1718893850914,-533.64204068,0.00056438,120]
[329982800,1718893850924,-500.0,0.00056438,120]
[329982801,1718893850933,-3247.93,0.00056438,120]
[329982802,1718893850942,-500.0,0.00056438,120]
[329982803,1718893850952,-500.0,0.00056438,120]
[329982804,1718893850961,-1140.96,0.00056438,120]
[329982805,1718893850971,-500.0,0.00056438,120]
[329982806,1718893850981,-500.0,0.00056438,120]
[329982807,1718893850990,-488.29480439,0.00056438,120]
[329982808,1718893851000,-500.0,0.00056438,120]
[329982809,1718893851010,-798.75,0.00056438,120]
[329982810,1718893851020,-5567.6,0.00056438,120]
[329982811,1718893851029,-500.0,0.00056438,120]
[329982812,1718893851038,-2119.36,0.00056438,120]
[329982813,1718893851048,-559.12,0.00056438,2]
[329982814,1718893851057,-4842.48607121,0.00056465,120]
[329982815,1718893851068,-759.77,0.00056709,120]
[329982816,1718893851078,-500.0,0.00056709,120]
[329982817,1718893851089,-1092.89,0.00056711,120]
[329982818,1718893851100,-1092.89,0.00056711,120]
[329982819,1718893851109,-1092.89,0.00056711,120]
[329982820,1718893851119,-1092.89,0.00056711,120]
[329982821,1718893851128,-1092.96198006,0.00056711,120]
[329982822,1718893851137,-500.0,0.00056712,120]
[329982823,1718893851146,-200.0,0.00056712,7]
[329982824,1718893851155,-500.0,0.00056712,2]
[329982825,1718893851164,-500.0,0.00056712,60]
[329982826,1718893851174,-500.0,0.00056712,120]
[329982827,1718893851183,-500.0,0.00056712,120]
[329982828,1718893851193,-500.0,0.00056712,120]
[329982829,1718893851202,-2840.35,0.00056712,120]
[329982830,1718893851212,-571.96,0.00056712,120]
[329982831,1718893851222,-500.0,0.00056712,120]
[329982832,1718893851231,-500.0,0.00056712,120]
[329982833,1718893851240,-1141.42,0.00056712,120]
[329982834,1718893851249,-500.0,0.00056712,120]
[329982835,1718893851259,-500.0,0.00056712,120]
[329982836,1718893851268,-500.0,0.00056712,120]
[329982837,1718893851278,-745.92,0.00056712,120]
[329982838,1718893851287,-366.48415421,0.00056712,120]
[329982839,1718893851297,-2164.15,0.00056712,120]
[329982840,1718893851305,-500.0,0.00056712,2]
[329982841,1718893851314,-500.0,0.00056712,120]
[329982842,1718893851323,-470.57587778,0.00056712,120]
[329982843,1718893851332,-29746.94,0.00056712,120]
[329982844,1718893851341,-500.0,0.00056712,120]
[329982845,1718893851351,-2713.85,0.00056712,120]
[329982846,1718893851360,-1700.35,0.00056712,21]
[329982847,1718893851369,-500.0,0.00056712,120]
[329982848,1718893851379,-500.0,0.00056712,120]
[329982849,1718893851388,-3121.95,0.00056712,120]
[329982850,1718893851397,-500.0,0.00056712,120]
[329982851,1718893851406,-720.78,0.00056712,120]
[329982852,1718893851415,-500.0,0.00056712,120]
[329982853,1718893851423,-2876.31,0.00056712,120]
[329982854,1718893851432,-500.0,0.00056712,120]
[329982855,1718893851440,-3044.24,0.00056712,120]
[329982856,1718893851449,-500.0,0.00056712,120]
[329982857,1718893851533,-152.348545,0.00056712,60]
[329982858,1718893851542,-510.98,0.00056712,120]
[329982859,1718893851552,-500.0,0.00056712,120]
[329982860,1718893851564,-539.63329671,0.00056712,120]
[329982861,1718893851573,-500.0,0.00056712,120]
[329982862,1718893851582,-151.0,0.00056712,120]
[329982863,1718893851590,-1268.8,0.00056712,120]
[329982864,1718893851601,-1189.39,0.00056712,120]
[329982865,1718893851610,-151.0,0.00056712,120]
[329982866,1718893851619,-527.77,0.00056712,120]
[329982867,1718893851628,-4860.44,0.00056712,120]
[329982869,1718893851637,-229.355019,0.00056712,120]
[329982871,1718893851649,-541.64,0.00056712,120]
[329982872,1718893851659,-500.0,0.00056712,120]
[329982874,1718893851668,-793.66,0.00056712,120]
[329982876,1718893851677,-500.0,0.00056712,120]
[329982878,1718893851687,-3247.93,0.00056712,120]
[329982880,1718893851696,-500.0,0.00056712,120]
[329982882,1718893851705,-500.0,0.00056712,120]
[329982884,1718893851715,-1140.96,0.00056712,120]
[329982886,1718893851723,-500.0,0.00056712,120]
[329982888,1718893851732,-500.0,0.00056712,120]
[329982890,1718893851741,-500.0,0.00056712,120]
[329982891,1718893851750,-798.75,0.00056712,120]
[329982893,1718893851760,-5567.6,0.00056712,120]
[329982895,1718893851770,-500.0,0.00056712,120]
[329982897,1718893851780,-2119.36,0.00056712,120]
[329982899,1718893851789,-559.12,0.00056712,2]
[329982901,1718893851798,-4842.48607121,0.00056715,120]
[329982903,1718893851807,-151.0,0.00056765,120]
[329982905,1718893851816,-151.0,0.00056765,120]
[329982907,1718893851825,-8866.0,0.000568,120]
[329982909,1718893851834,-26888.0,0.000568,120]
[329982910,1718893851843,-634.379999,0.000568,120]
[329982911,1718893851853,-1000.0,0.00056869,30]
[329982912,1718893851862,-5000.0,0.000569,120]
[329982913,1718893851871,-187.581081,0.00056922,120]
[329982914,1718893851880,-151.0,0.00056922,120]
[329982916,1718893851889,-40052.82425402,0.00056922,120]
[329982918,1718893851898,-759.77,0.00056983,120]
[329982920,1718893851907,-500.0,0.00056983,120]
[329982922,1718893851916,-151.0,0.00056983,120]
[329982924,1718893851925,-151.0,0.00056983,120]
[329982925,1718893851934,-151.0,0.00056983,120]
[329982926,1718893851943,-500.0,0.00056986,120]
[329982927,1718893851952,-200.0,0.00056986,7]
[329982929,1718893851961,-500.0,0.00056986,2]
[329982931,1718893851969,-500.0,0.00056986,60]
[329982933,1718893851978,-500.0,0.00056986,42]
[329982935,1718893851987,-500.0,0.00056986,120]
[329982936,1718893851996,-500.0,0.00056986,120]
[329982938,1718893852005,-500.0,0.00056986,120]
[329982940,1718893852014,-2840.35,0.00056986,120]
[329982942,1718893852023,-571.96,0.00056986,120]
[329982944,1718893852032,-530.1840526,0.00056986,120]
[329982946,1718893852041,-448.59318726,0.00056986,120]
[329982948,1718893852050,-151.0,0.00056986,120]
[329982950,1718893852059,-1141.42,0.00056986,120]
[329982951,1718893852067,-560.08261763,0.00056986,120]
[329982952,1718893852076,-500.0,0.00056986,120]
[329982953,1718893852086,-500.0,0.00056986,120]
[329982954,1718893852095,-745.92,0.00056986,120]
[329982955,1718893852105,-2164.15,0.00056986,120]
[329982956,1718893852114,-500.0,0.00056986,2]
[329982957,1718893852123,-500.0,0.00056986,120]
[329982958,1718893852132,-29746.94,0.00056986,120]
[329982959,1718893852141,-500.0,0.00056986,120]
[329982960,1718893852151,-2713.85,0.00056986,120]
[329982961,1718893852160,-1700.35,0.00056986,21]
[329982962,1718893852169,-500.0,0.00056986,120]
[329982963,1718893852179,-500.0,0.00056986,120]
[329982964,1718893852188,-3121.95,0.00056986,120]
[329982965,1718893852197,-500.0,0.00056986,120]
[329982966,1718893852207,-720.78,0.00056986,120]
[329982967,1718893852217,-500.0,0.00056986,120]
[329982968,1718893852226,-2876.31,0.00056986,120]
[329982969,1718893852236,-500.0,0.00056986,120]
[329982970,1718893852245,-3044.24,0.00056986,120]
[329982971,1718893852255,-515.00526744,0.00056986,120]
[329982972,1718893852265,-510.98,0.00056986,120]
[329982973,1718893852274,-500.0,0.00056986,120]
[329982974,1718893852284,-500.0,0.00056986,120]
[329982975,1718893852293,-1268.8,0.00056986,120]
[329982976,1718893852303,-1189.39,0.00056986,120]
[329982977,1718893852313,-527.77,0.00056986,120]
[329982978,1718893852323,-4860.44,0.00056986,120]
[329982979,1718893852333,-541.64,0.00056986,120]
[329982980,1718893852343,-500.0,0.00056986,120]
[329982981,1718893852355,-793.66,0.00056986,120]
[329982982,1718893852365,-500.0,0.00056986,120]
[329982983,1718893852375,-3247.93,0.00056986,120]
[329982984,1718893852384,-500.0,0.00056986,120]
[329982985,1718893852394,-500.0,0.00056986,120]
[329982986,1718893852404,-1140.96,0.00056986,120]
[329982987,1718893852415,-500.0,0.00056986,120]
[329982988,1718893852425,-500.0,0.00056986,120]
[329982989,1718893852435,-1000.0,0.00056986,120]
[329982990,1718893852444,-1000.0,0.00056986,120]
[329982991,1718893852453,-1000.0,0.00056986,120]
[329982992,1718893852464,-1000.0,0.00056986,120]
[329982993,1718893852473,-1000.0,0.00056986,120]
[329982994,1718893852483,-1000.0,0.00056986,120]
[329982995,1718893852493,-1000.0,0.00056986,120]
[329982996,1718893852502,-1000.0,0.00056986,120]
[329982997,1718893852511,-1000.0,0.00056986,120]
[329982998,1718893852521,-1000.0,0.00056986,120]
[329982999,1718893852531,-1000.0,0.00056986,120]
[329983000,1718893852541,-1000.0,0.00056986,120]
[329983001,1718893852553,-1000.0,0.00056986,120]
[329983002,1718893852564,-1000.0,0.00056986,120]
[329983003,1718893852574,-1000.0,0.00056986,120]
[329983004,1718893852584,-1000.0,0.00056986,120]
[329983005,1718893852594,-1000.0,0.00056986,120]
[329983006,1718893852605,-500.0,0.00056986,120]
[329983007,1718893852615,-798.75,0.00056986,120]
[329983008,1718893852624,-989.73403899,0.00056986,120]
[329983009,1718893852634,-5567.6,0.00056986,120]
[329983010,1718893852645,-534.4427515,0.00056986,120]
[329983011,1718893852656,-2119.36,0.00056986,120]
[329983012,1718893852666,-252.0,0.00057,36]
[329983013,1718893852675,-268.0,0.00057,36]
[329983014,1718893852685,-160.0,0.00057,54]
[329983015,1718893852694,-517.0,0.0005708,120]
[329983016,1718893852703,-759.77,0.00057257,120]
[329983017,1718893852712,-490.50475209,0.00057257,120]
[329983018,1718893852721,-500.0,0.0005726,120]
[329983019,1718893852730,-200.0,0.0005726,7]
[329983020,1718893852740,-403.82542471,0.0005726,2]
[329983021,1718893852749,-500.0,0.0005726,60]
[329983022,1718893852759,-500.0,0.0005726,120]
[329983023,1718893852767,-500.0,0.0005726,120]
[329983024,1718893852777,-500.0,0.0005726,120]
[329983025,1718893852786,-269.673887,0.0005726,120]
[329983026,1718893852795,-2840.35,0.0005726,120]
[329983027,1718893852803,-571.96,0.0005726,120]
[329983028,1718893852812,-1141.42,0.0005726,120]
[329983029,1718893852821,-500.0,0.0005726,120]
[329983030,1718893852830,-500.0,0.0005726,120]
[329983031,1718893852839,-745.92,0.0005726,120]
[329983032,1718893852850,-2164.15,0.0005726,120]
[329983033,1718893852859,-500.0,0.0005726,2]
[329983034,1718893852868,-500.0,0.0005726,120]
[329983035,1718893852878,-29746.94,0.0005726,120]
[329983036,1718893852887,-500.0,0.0005726,120]
[329983037,1718893852897,-2713.85,0.0005726,120]
[329983038,1718893852906,-1700.35,0.0005726,21]
[329983039,1718893852916,-300.43009125,0.0005726,120]
[329983040,1718893852925,-500.0,0.0005726,120]
[329983041,1718893852935,-3121.95,0.0005726,120]
[329983042,1718893852944,-500.0,0.0005726,120]
[329983043,1718893852953,-720.78,0.0005726,120]
[329983044,1718893852962,-500.0,0.0005726,120]
[329983045,1718893852971,-2876.31,0.0005726,120]
[329983046,1718893852980,-500.0,0.0005726,120]
[329983047,1718893852989,-3044.24,0.0005726,120]
[329983048,1718893852998,-510.98,0.0005726,120]
[329983049,1718893853007,-500.0,0.0005726,120]
[329983050,1718893853016,-500.0,0.0005726,120]
[329983051,1718893853025,-151.0,0.0005726,120]
[329983052,1718893853034,-151.0,0.0005726,120]
[329983053,1718893853043,-151.0,0.0005726,120]
[329983054,1718893853052,-1268.8,0.0005726,120]
[329983055,1718893853061,-1189.39,0.0005726,120]
[329983056,1718893853070,-151.0,0.0005726,120]
[329983057,1718893853080,-527.77,0.0005726,120]
[329983058,1718893853090,-4860.44,0.0005726,120]
[329983059,1718893853101,-541.64,0.0005726,120]
[329983060,1718893853110,-500.0,0.0005726,120]
[329983061,1718893853120,-793.66,0.0005726,120]
[329983062,1718893853129,-500.0,0.0005726,120]
[329983063,1718893853139,-3247.93,0.0005726,120]
[329983064,1718893853148,-500.0,0.0005726,120]
[329983065,1718893853159,-500.0,0.0005726,120]
[329983066,1718893853168,-1140.96,0.0005726,120]
[329983067,1718893853178,-500.0,0.0005726,120]
[329983068,1718893853187,-500.0,0.0005726,120]
[329983069,1718893853197,-500.0,0.0005726,120]
[329983070,1718893853206,-798.75,0.0005726,120]
[329983071,1718893853215,-5567.6,0.0005726,120]
[329983072,1718893853225,-2119.36,0.0005726,120]
[329983073,1718893853234,-4842.48607121,0.00057293,120]
[329983074,1718893853243,-150.0,0.00057381,120]
[329983075,1718893853252,-759.77,0.00057531,120]
[329983076,1718893853261,-620.99973501,0.00057534,120]
[329983077,1718893853270,-305.3566708,0.00057534,7]
[329983078,1718893853280,-500.0,0.00057534,60]
[329983079,1718893853289,-151.0,0.00057534,120]
[329983080,1718893853299,-500.0,0.00057534,120]
[329983081,1718893853308,-500.0,0.00057534,120]
[329983082,1718893853318,-500.0,0.00057534,120]
[329983083,1718893853327,-2840.35,0.00057534,120]
[329983084,1718893853337,-571.96,0.00057534,120]
[329983085,1718893853346,-1141.42,0.00057534,120]
[329983086,1718893853429,-500.0,0.00057534,120]
[329983087,1718893853439,-151.0,0.00057534,120]
[329983088,1718893853449,-500.0,0.00057534,120]
[329983089,1718893853458,-151.0,0.00057534,120]
[329983090,1718893853468,-745.92,0.00057534,120]
[329983091,1718893853478,-2164.15,0.00057534,120]
[329983092,1718893853487,-151.0,0.00057534,120]
[329983093,1718893853497,-500.0,0.00057534,2]
[329983094,1718893853506,-500.0,0.00057534,120]
[329983095,1718893853516,-151.0,0.00057534,120]
[329983096,1718893853527,-29746.94,0.00057534,120]
[329983097,1718893853536,-500.0,0.00057534,120]
[329983098,1718893853545,-2713.85,0.00057534,120]
[329983099,1718893853559,-1700.35,0.00057534,21]
[329983100,1718893853569,-500.0,0.00057534,120]
[329983101,1718893853578,-1396.61233961,0.00057534,120]
[329983102,1718893853665,-337.7812,0.00057534,120]
[329983103,1718893853941,-400.66,0.00054784,3]
[329983104,1718893853951,-500.0,0.00054794,120]
[329983105,1718893853960,-500.0,0.00054794,120]
[329983106,1718893853969,-483.0485805,0.00055068,120]
[329983107,1718893853979,-500.0,0.00055068,120]
[329983108,1718893853990,-500.0,0.00055342,120]
[329983109,1718893854000,-500.0,0.00055616,120]
[329983110,1718893854009,-500.0,0.0005589,120]
[329983111,1718893854019,-702.87,0.0005589,120]
[329983112,1718893854029,-500.0,0.00056164,120]
[329983113,1718893854039,-702.87,0.00056164,120]
[329983114,1718893854049,-702.87,0.00056438,120]
[329983115,1718893854058,-500.0,0.00056438,120]
[329983116,1718893854068,-226.0092195,0.00056712,120]
[329983117,1718893854080,-476.8607805,0.00056712,120]
[329983118,1718893854090,-533.15609536,0.00056712,120]
[329983119,1718893854099,-312.89996457,0.00056986,2]
[329983120,1718893854112,-246.22003543,0.00056986,2]
[329983121,1718893854122,-702.87,0.00056986,120]
[329983122,1718893854131,-559.12,0.0005726,2]
[329983123,1718893854139,-702.87,0.0005726,120]
[329983124,1718893854149,-1387.55646039,0.00057534,120]
[329983125,1718893854158,-500.0,0.00057534,120]
[329983126,1718893854167,-176.36350418,0.00057534,120]
[329983127,1718893854178,-544.41649582,0.00057534,120]
[329983128,1718893854188,-500.0,0.00057534,120]
[329983129,1718893854197,-2876.31,0.00057534,120]
[329983130,1718893854207,-500.0,0.00057534,120]
[329983131,1718893854216,-3044.24,0.00057534,120]
[329983132,1718893854226,-510.98,0.00057534,120]
[329983133,1718893854235,-500.0,0.00057534,120]
[329983134,1718893854244,-500.0,0.00057534,120]
[329983135,1718893854253,-1189.39,0.00057534,120]
[329983136,1718893854263,-1268.8,0.00057534,120]
[329983137,1718893854272,-527.77,0.00057534,120]
[329983138,1718893854281,-4860.44,0.00057534,120]
[329983139,1718893854291,-541.64,0.00057534,120]
[329983140,1718893854300,-500.0,0.00057534,120]
[329983141,1718893854309,-793.66,0.00057534,120]
[329983142,1718893854319,-500.0,0.00057534,120]
[329983143,1718893854327,-3247.93,0.00057534,120]
[329983144,1718893854337,-500.0,0.00057534,120]
[329983145,1718893854347,-500.0,0.00057534,120]
[329983146,1718893854359,-1140.96,0.00057534,120]
[329983147,1718893854368,-500.0,0.00057534,120]
[329983148,1718893854377,-500.0,0.00057534,120]
[329983149,1718893854387,-647.67244546,0.00057534,120]
[329983150,1718893854396,-798.75,0.00057534,120]
[329983151,1718893854406,-5567.6,0.00057534,120]
[329983152,1718893854416,-2119.36,0.00057534,120]
[329983153,1718893854426,-559.12,0.00057534,2]
[329983154,1718893854435,-702.87,0.00057534,120]
[329983155,1718893854445,-1000.0,0.00057688,120]
[329983156,1718893854454,-4842.48607124,0.00057763,120]
[329983157,1718893854463,-151.0,0.00057804,120]
[329983158,1718893854473,-759.77,0.00057805,120]
[329983159,1718893854482,-500.0,0.00057808,60]
[329983160,1718893854491,-503.08907063,0.00057808,120]
[329983161,1718893854502,-500.0,0.00057808,120]
[329983162,1718893854511,-500.0,0.00057808,120]
[329983163,1718893854521,-2840.35,0.00057808,120]
[329983164,1718893854531,-571.96,0.00057808,120]
[329983165,1718893854540,-1141.42,0.00057808,120]
[329983166,1718893854551,-338.00081446,0.00057808,120]
[329983167,1718893854562,-500.0,0.00057808,120]
[329983168,1718893854573,-745.92,0.00057808,120]
[329983169,1718893854583,-2164.15,0.00057808,120]
[329983170,1718893854592,-500.0,0.00057808,2]
[329983171,1718893854602,-500.0,0.00057808,120]
[329983172,1718893854611,-21675.57532383,0.00057808,120]
[329983173,1718893854624,-3323.19344999,0.00057808,120]
[329983174,1718893916226,160.406184,0.00021096,2]
[329983180,1718894383741,155.0,0.000225,30]
[329983181,1718894388486,155.0,0.000225,30]
[329983182,1718894393694,155.0,0.000225,30]
[329983183,1718894399014,155.0,0.000225,30]
[329983184,1718894403595,155.0,0.000225,30]
[329983185,1718894409867,155.0,0.000225,30]
[329983186,1718894414508,155.0,0.000225,30]
[329983187,1718894419132,155.0,0.000225,30]
[329983188,1718894423826,155.0,0.000225,30]
[329983189,1718894428684,155.0,0.000225,30]
[329983190,1718894433591,155.0,0.000225,30]
[329983191,1718894438169,155.0,0.000225,30]
[329983192,1718894442808,248.55524861,0.000225,30]
[329983237,1718894815180,-158.53305613,0.0002,2]
[329983238,1718894825122,-770.14235368,0.0002,2]
[329983239,1718894828146,-2276.38280234,0.0002,2]
[329983240,1718894831121,-711.65354586,0.0002,2]
[329983241,1718894831181,-497.8096,0.00024302,30]
[329983242,1718894831269,-1937.65298029,0.00025,2]
[329983243,1718894831311,-300.0,0.00027941,2]
[329983244,1718894831331,-1271.75768985,0.0003,10]
[329983245,1718894835094,-199.69795447,0.0003,10]
[329983246,1718894835114,-1380.19597521,0.0003018,2]
[329983247,1718894965091,-500.0,0.00027397,2]
[329983248,1718894965114,-353.23355686,0.00027397,2]
[329983249,1718894965135,-223.0,0.00027906,2]
[329983250,1718894965157,-153.0,0.00033344,2]
[329983251,1718894965180,-153.0,0.00033568,2]
[329983252,1718894965201,-89.01646892,0.00033568,2]
[329983279,1718895035580,-170.63331,0.00027907,30]
[329983281,1718895035592,-354.47705918,0.00027907,30]
[329983283,1718895035605,-1281.60480599,0.00027907,30]
[329983285,1718895035616,-6219.87755602,0.00027907,30]
[329983286,1718895035626,-1010.73974669,0.00027907,2]
[329983288,1718895035635,-176.71611323,0.0002808,2]
[329983290,1718895035645,-176.71611323,0.0003308,2]
[329983291,1718895035654,-63.98353108,0.00033568,2]
[329983292,1718895035663,-153.0,0.00033568,2]
[329983293,1718895035672,-707.639195,0.00033568,2]
[329983294,1718895035681,-166.666667,0.00035326,2]
[329983295,1718895035691,-226.2066056,0.00036606,2]
[329983296,1718895035700,-153.0,0.00040145,2]
[329983297,1718895035710,-6532.1949866,0.00040207,2]
[329983298,1718895035719,-152.73828047,0.00041079,30]
[329983299,1718895035728,-178.270507,0.00041898,2]